fUSD/lending_fUSD_20260111
["ID","MTS","AMOUNT","RATE_DAILY","PERIOD"]
[401309295,1768125043479,-1174.910634,0.00017827,2]
[401309297,1768125043490,-541.90514706,0.00017827,2]
[401309299,1768125043501,-2856.6204109,0.00017827,2]
[401309301,1768125043513,-7480.92102115,0.00017827,2]
[401309303,1768125043522,-3425.90850654,0.00018,2]
[401309306,1768125043553,-306.23900044,0.00018,2]
[401309308,1768125043564,-500.0,0.00018,2]
[401309310,1768125043575,-569.06117001,0.00018,2]
[401309312,1768125043588,-409.77519074,0.00018,2]
[401309370,1768125044375,-620.57,0.00018,2]
[401309372,1768125044387,-740.39071647,0.00018,2]
[401309912,1768125308353,14414.939736,7.945e-05,2]
[401309918,1768125575228,338.59,8.207e-05,2]
[401309919,1768125575275,338.59,8.622e-05,2]
[401309920,1768125575345,338.59,9.037e-05,2]
[401309921,1768125575391,338.59,9.452e-05,2]
[401309922,1768125575441,338.59,9.867e-05,2]
[401309923,1768125575492,338.59,0.00010282,2]
[401309924,1768125575686,338.59,0.00010697,2]
[401309925,1768125575874,338.59,0.00011112,2]
[401309926,1768125576062,338.59,0.00011527,2]
[401309927,1768125576263,338.59,0.00011942,2]
[401309928,1768125576453,338.59,0.00012357,2]
[401309929,1768125576647,338.59,0.00012772,2]
[401309930,1768125576831,98.99425882,0.00013187,2]
[401309931,1768125576864,239.59574118,0.00013187,2]
[401309932,1768125577096,338.59,0.00013602,2]
[401309933,1768125582820,-200.0,0.00014017,2]
[401309934,1768125585052,-138.59,0.00014017,2]
[401309935,1768125585076,-314.95958009,0.00014432,2]
[401309936,1768125586597,-23.63041991,0.00014432,2]
[401309937,1768125586620,-155.73554276,0.00014847,2]
[401309962,1768125613406,-270.42352921,0.00014847,2]
[401309963,1768125618463,-2.57647079,0.00014847,2]
[401309964,1768125618486,-182.85445724,0.00014847,2]
[401309965,1768125618510,-4.59930651,0.00015262,2]
[401309966,1768125621757,-224.57077833,0.00015262,2]
[401309968,1768125788414,218.0,0.00027397,120]
[401309969,1768125852859,-109.41991516,0.00015262,2]
[401309970,1768125852883,-58.7326397,0.00015366,2]
[401309971,1768125856259,-182.91701598,0.00015366,2]
[401309977,1768126067271,-8.35034432,0.00015366,2]
[401309978,1768126067293,-293.90965551,0.0001547,2]
[401309979,1768126069520,-6.09034449,0.0001547,2]
[401309980,1768126069549,-200.03965551,0.00015675,2]
[401309981,1768126070704,-49.96034449,0.00015675,2]
[401309982,1768126070726,-330.14312106,0.00015677,2]
[401309983,1768126072283,-8.44687894,0.00015677,2]
[401309984,1768126072304,-265.73978987,0.00015873,2]
[401309985,1768126074423,-299.4769934,0.00015366,2]
[401309986,1768126076020,-199.03312016,0.00015366,2]
[401309987,1768126077708,-10000.0,0.00015366,2]
[401309988,1768126078239,-296.29676817,0.00015366,2]
[401309999,1768126232832,-549.90444418,0.00015366,2]
[401310000,1768126232844,-1115.5,0.00015366,2]
[401310001,1768126232861,-2380.74473552,0.00015366,2]
[401310002,1768126237990,-864.18571892,0.00015366,2]
[401310003,1768126237999,-278.0,0.00015366,2]
[401310004,1768126238008,-300.0,0.00015721,2]
[401310005,1768126238017,-175.54834745,0.00015936,2]
[401310006,1768126238026,-151.0,0.0001606,2]
[401310007,1768126238035,-151.0,0.00016062,2]
[401310008,1768126238048,-81.39855175,0.00016066,2]
[401310009,1768126238072,-69.60144825,0.00016066,2]
[401310010,1768126238081,-166.0,0.00016087,2]
[401310011,1768126238091,-338.59,0.00016092,2]
[401310012,1768126238100,-161.09375916,0.000161,2]
[401310013,1768126238110,-300.0,0.00016199,2]
[401310014,1768126238122,-1200.0,0.00016199,2]
[401310015,1768126238131,-150.0,0.000162,2]
[401310016,1768126238143,-150.0,0.000162,2]
[401310017,1768126238157,-150.0,0.000162,2]
[401310018,1768126238168,-150.0,0.000162,2]
[401310019,1768126238178,-150.0,0.000162,2]
[401310020,1768126238188,-150.0,0.000162,2]
[401310021,1768126238198,-150.0,0.00016249,2]
[401310022,1768126238209,-150.0,0.00016297,2]
[401310023,1768126238220,-156.93042259,0.00016338,2]
[401310024,1768126238230,-150.0,0.00016346,2]
[401310025,1768126238239,-150.0,0.00016395,2]
[401310026,1768126238250,-500.0,0.0001642,2]
[401310027,1768126238260,-206.55800441,0.0001642,2]
[401310029,1768126238271,-500.0,0.0001642,2]
[401310031,1768126238280,-302.57278273,0.0001642,2]
[401310033,1768126238290,-273.70157244,0.0001642,2]
[401310035,1768126238299,-500.0,0.0001642,2]
[401310036,1768126238309,-489.84207262,0.0001642,2]
[401310038,1768126238318,-3665.9683893,0.00016421,2]
[401310041,1768126238338,-1036.6393427,0.00016421,2]
[401310044,1768126238356,-14410.71674441,0.00016421,2]
[401310224,1768126240252,-154.46254654,0.00016338,2]
[401310227,1768126240262,-390.24246123,0.00016421,2]
[401310243,1768126240334,-1070.56349707,0.00016421,2]
[401310247,1768126240345,-979425.86956529,0.00016421,2]
[401310250,1768126240355,-9695.37,0.00016438,2]
[401310253,1768126240365,-150.0,0.00016443,2]
[401310256,1768126240375,-150.0,0.00016492,2]
[401310258,1768126240384,-3240.0,0.00016493,2]
[401310260,1768126240394,-164.55,0.00016513,2]
[401310262,1768126240406,-2074.12,0.00016519,2]
[401310264,1768126240420,-253.56,0.00016519,2]
[401310266,1768126240431,-3647.13493503,0.00016538,2]
[401310268,1768126240440,-150.0,0.00016541,2]
[401310270,1768126240450,-150.0,0.00016589,2]
[401310272,1768126240460,-550.0,0.00016608,2]
[401310274,1768126240470,-202.27919226,0.00016609,2]
[401310276,1768126240481,-151.0,0.00016609,2]
[401310278,1768126240491,-151.0,0.00016609,2]
[401310280,1768126240501,-235.01688217,0.00016609,2]
[401310282,1768126240511,-623.111,0.00016618,2]
[401310284,1768126240527,-500.0,0.00016618,2]
[401310286,1768126240536,-150.0,0.00016618,2]
[401310288,1768126240547,-500.0,0.00016618,2]
[401310290,1768126240556,-150.0,0.00016638,2]
[401310292,1768126240566,-150.0,0.00016686,2]
[401310294,1768126240577,-3647.13493498,0.00016689,2]
[401310296,1768126240598,-150.0,0.00016735,2]
[401310299,1768126240620,-341.64,0.00016752,2]
[401310301,1768126240637,-254734.16,0.00016773,2]
[401310303,1768126240647,-150.0,0.00016784,2]
[401310305,1768126240656,-150.0,0.00016832,2]
[401310307,1768126240666,-3647.13493498,0.00016841,2]
[401310309,1768126240675,-250.0,0.00016873,2]
[401310311,1768126240685,-150.0,0.00016881,2]
[401310313,1768126240695,-250.0,0.00016903,2]
[401310315,1768126240705,-250.0,0.00016903,2]
[401310317,1768126240714,-195.0,0.00016903,2]
[401310319,1768126240723,-300.0,0.00016903,2]
[401310321,1768126240732,-300.0,0.00016903,2]
[401310323,1768126240742,-610.91,0.00016904,2]
[401310325,1768126240751,-150.0,0.0001693,2]
[401310327,1768126240761,-169.61,0.00016947,2]
[401310329,1768126240770,-150.0,0.00016978,2]
[401310331,1768126240779,-3647.13493498,0.00016992,2]
[401310333,1768126240788,-150.0,0.00017007,2]
[401310335,1768126240798,-150.91677639,0.00017007,2]
[401310337,1768126240809,-150.0,0.00017007,2]
[401310339,1768126240819,-150.0,0.00017007,2]
[401310341,1768126240829,-150.0,0.00017007,2]
[401310343,1768126240838,-150.0,0.00017007,2]
[401310345,1768126240848,-221.72177176,0.00017007,2]
[401310347,1768126240857,-152.60681401,0.00017007,2]
[401310349,1768126240867,-150.0,0.00017007,2]
[401310351,1768126240877,-255.38896935,0.00017007,2]
[401310353,1768126240887,-5570.0,0.00017022,2]
[401310355,1768126240896,-150.0,0.00017027,2]
[401310357,1768126240905,-150.0,0.00017062,2]
[401310359,1768126240915,-150.0,0.00017062,2]
[401310361,1768126240925,-150.0,0.00017062,2]
[401310363,1768126240934,-150.0,0.00017062,2]
[401310365,1768126240943,-500.0,0.00017073,2]
[401310367,1768126240952,-500.0,0.00017073,2]
[401310369,1768126240961,-500.0,0.00017073,2]
[401310371,1768126240971,-586.16911209,0.00017073,2]
[401310373,1768126240981,-500.0,0.00017073,2]
[401310375,1768126240990,-500.0,0.00017073,2]
[401310377,1768126240999,-150.0,0.00017076,2]
[401310379,1768126241008,-578.20924308,0.00017099,2]
[401310381,1768126241017,-155.74193708,0.00017099,2]
[401310383,1768126241027,-553.64373807,0.00017099,2]
[401310385,1768126241036,-322.6107,0.00017099,2]
[401310387,1768126241045,-620.0,0.00017099,2]
[401310389,1768126241054,-200.0,0.00017117,2]
[401310391,1768126241063,-200.0,0.00017117,2]
[401310393,1768126241073,-200.0,0.00017117,2]
[401310395,1768126241083,-150.0,0.00017117,2]
[401310397,1768126241092,-150.0,0.00017124,2]
[401310399,1768126241101,-3647.13493498,0.00017143,2]
[401310401,1768126241111,-150.0,0.00017171,2]
[401310403,1768126241121,-150.0,0.00017173,2]
[401310405,1768126241130,-150.0,0.00017222,2]
[401310407,1768126241140,-150.0,0.00017226,2]
[401310409,1768126241149,-150.0,0.0001727,2]
[401310411,1768126241158,-250.0,0.00017281,2]
[401310414,1768126241167,-3647.13493498,0.00017295,2]
[401310416,1768126241176,-150.0,0.00017319,2]
[401310418,1768126241186,-150.0,0.00017368,2]
[401310421,1768126241205,-150.0,0.00017416,2]
[401310423,1768126241215,-3647.13493498,0.00017446,2]
[401310425,1768126241225,-747.0,0.00017452,2]
[401310427,1768126241235,-150.0,0.00017465,2]
[401310429,1768126241246,-1199.0,0.00017466,2]
[401310431,1768126241256,-150.0,0.00017478,2]
[401310433,1768126241265,-1000.0,0.000175,2]
[401310435,1768126241275,-150.0,0.00017514,2]
[401310437,1768126241284,-1199.0,0.00017535,2]
[401310439,1768126241294,-150.0,0.00017562,2]
[401310441,1768126241304,-3647.13493498,0.00017597,2]
[401310443,1768126241313,-150.0,0.00017611,2]
[401310445,1768126241322,-1000.0,0.00017621,2]
[401310447,1768126241332,-743.38858154,0.00017621,2]
[401310450,1768126241342,-1000.0,0.00017621,2]
[401310452,1768126241352,-1000.0,0.00017621,2]
[401310454,1768126241361,-1069.39829097,0.0001764,2]
[401310456,1768126241371,-2424.60311288,0.0001764,2]
[401310458,1768126241381,-150.0,0.00017659,2]
[401310460,1768126241390,-1000.0,0.000177,2]
[401310462,1768126241400,-150.0,0.00017708,2]
[401310464,1768126241409,-1000.0,0.00017711,2]
[401310466,1768126241419,-1331.055,0.00017726,2]
[401310468,1768126241429,-1419.205,0.00017726,2]
[401310470,1768126241439,-1266.0,0.00017726,2]
[401310472,1768126241448,-506.0,0.00017726,2]
[401310474,1768126241458,-914.0,0.00017737,2]
[401310476,1768126241468,-3647.13493498,0.00017749,2]
[401310478,1768126241484,-150.0,0.00017757,2]
[401310480,1768126241495,-1199.0,0.00017784,2]
[401310482,1768126241504,-315.78,0.00017787,2]
[401310484,1768126241515,-2437.0,0.00017787,2]
[401310486,1768126241526,-6555.0,0.00017787,2]
[401310489,1768126241535,-1680.0,0.00017796,2]
[401310491,1768126241546,-1000.0,0.000178,2]
[401310493,1768126241554,-150.0,0.00017805,2]
[401310495,1768126241564,-409.21689,0.0001782,2]
[401310497,1768126241573,-409.21689,0.0001782,2]
[401310499,1768126241582,-409.21689,0.0001783,2]
[401310501,1768126241595,-163.25719,0.0001783,2]
[401310503,1768126241605,-500.0,0.00017833,2]
[401310504,1768126241614,-150.0,0.00017854,2]
[401310505,1768126241625,-200.0,0.00017856,2]
[401310506,1768126241634,-409.21689,0.0001786,2]
[401310507,1768126241644,-747.0,0.00017872,2]
[401310508,1768126241653,-409.2169,0.0001788,2]
[401310509,1768126241663,-163.2572,0.0001788,2]
[401310510,1768126241673,-169.61,0.00017889,2]
[401310511,1768126241682,-500.0,0.00017889,2]
[401310512,1768126241691,-500.0,0.00017889,2]
[401310513,1768126241700,-1812.36591962,0.000179,2]
[401310515,1768126241710,-23733.12490966,0.000179,3]
[401310517,1768126241719,-3647.13493498,0.000179,2]
[401310519,1768126241729,-1141.06272098,0.000179,2]
[401310521,1768126241738,-150.0,0.00017903,2]
[401310524,1768126241751,-409.21689,0.0001791,2]
[401310526,1768126241761,-163.25719,0.0001793,2]
[401310528,1768126241770,-747.0,0.00017945,2]
[401310530,1768126241780,-150.0,0.00017951,2]
[401310532,1768126241789,-1199.0,0.00017965,2]
[401310534,1768126241799,-2468.6329303,0.00017967,2]
[401310536,1768126241809,-13496.6432644,0.00017967,2]
[401310538,1768126241818,-3124.0439724,0.00017967,2]
[401310540,1768126241828,-163.2572,0.0001798,2]
[401310542,1768126241837,-150.2390728,0.00017985,2]
[401310544,1768126241847,-270.08464291,0.00017999,2]
[401310547,1768126241856,-300.0,0.00017999,2]
[401310549,1768126241865,-300.0,0.00017999,2]
[401310551,1768126241874,-548.49326873,0.00017999,2]
[401310553,1768126241884,-7055.23378668,0.00018,2]
[401310555,1768126241893,-150.0,0.00018,2]
[401310557,1768126241902,-2016508.50556297,0.00018,2]
[401310559,1768126241912,-68526.4369224,0.00018,2]
[401310561,1768126241927,-7922.11837176,0.00018,2]
[401310564,1768126241939,-523.34287504,0.00018,2]
[401310566,1768126241950,-2993.80498,0.00018,2]
[401310568,1768126241961,-1063.89121988,0.00018,2]
[401310750,1768126243899,-1099.0,0.00018,2]
[401310838,1768126244811,-151.0,0.00016052,2]
[401310840,1768126244821,-154.46254654,0.00017687,2]
[401310842,1768126244830,-4215.58921879,0.00018,2]
[401311507,1768127157758,-198.0,0.0001532,2]
[401311508,1768127160321,-372.89870039,0.0001532,2]
[401311510,1768127163145,-421.1354126,0.0001532,2]
[401311511,1768127165404,-248.11986185,0.0001532,2]
[401311512,1768127167983,-431.31728174,0.0001532,2]
[401311513,1768127171346,-158.26260425,0.0001532,2]
[401311514,1768127174324,-152.24156188,0.0001532,2]
[401311515,1768127176347,-395.65232787,0.0001532,2]
[401311516,1768127179384,-199.96669675,0.0001532,2]
[401311518,1768127182209,-158.78420372,0.0001532,2]
[401311519,1768127187019,-253.42816147,0.0001532,2]
[401311520,1768127189487,-168.84310972,0.0001532,2]
[401311521,1768127192628,-221.1910972,0.0001532,2]
[401311523,1768127195105,-207.1827983,0.0001532,2]
[401311524,1768127199281,-252.88906652,0.0001532,2]
[401311525,1768127200761,-500.0,0.00015319,2]
[401311526,1768127200788,-21.70451436,0.00015319,2]
[401311527,1768127205350,-161.61997633,0.00015319,2]
[401311528,1768127207642,-213.69696064,0.00015319,2]
[401311529,1768127210001,-102.97854867,0.00015319,2]
[401311530,1768127210029,-143.81582347,0.00015319,2]
[401311531,1768127212958,-164.50904285,0.00015319,2]
[401311532,1768127215245,-182.13039526,0.00015319,2]
[401311533,1768127216821,-9.54473842,0.00015319,2]
[401311534,1768127216847,-234.8253373,0.00015319,2]
[401311536,1768127222860,-300.0,0.00015319,2]
[401311537,1768127222886,-1.94240373,0.00015319,2]
[401311538,1768127227179,-248.05759627,0.00015319,2]
[401311539,1768127231546,-15.1746627,0.00015319,2]
[401311540,1768127231572,-286.8253373,0.00015319,2]
[401311541,1768127239337,-143.1746627,0.00015319,2]
[401311542,1768127239361,-35.37225168,0.00015319,2]
[401311543,1768127241908,-159.62774832,0.00015319,2]
[401311544,1768127241931,-99.1653373,0.00015319,2]
[401311545,1768127245600,-166.66,0.00015319,2]
[401311546,1768127249187,-34.1746627,0.00015319,2]
[401311547,1768127249213,-245.3093466,0.0001532,2]
[401311548,1768127253505,-4.6906534,0.0001532,2]
[401311549,1768127253529,-398.15600964,0.0001532,2]
[401311551,1768127256853,-198.0,0.0001532,2]
[401311552,1768127259354,-302.0,0.0001532,2]
[401311553,1768127261163,-184.22094456,0.0001532,2]
[401311554,1768127267496,-302.0,0.0001532,2]
[401311555,1768127271245,-302.0,0.0001532,2]
[401311556,1768127277822,-302.0,0.0001532,2]
[401311557,1768127280844,-177.91433626,0.0001532,2]
[401311560,1768127283423,-275.08566374,0.00015319,2]
[401311561,1768127288415,-24.91433626,0.00015319,2]
[401311562,1768127288438,-277.08566374,0.0001532,2]
[401311563,1768127291959,-451.0,0.0001532,2]
[401311565,1768127295662,-339.44339648,0.0001532,2]
[401311567,1768127299338,-265.46135553,0.0001532,2]
[401311568,1768127300977,-262.17148252,0.0001532,2]
[401311569,1768127302462,-166.66,0.0001532,2]
[401311570,1768127304621,-341.0865959,0.0001532,2]
[401311571,1768127306072,-302.0,0.0001532,2]
[401311574,1768127308208,-302.0,0.0001532,2]
[401311575,1768127309804,-166.66,0.0001532,2]
[401311589,1768127432356,-833.687963,0.00015228,2]
[401311590,1768127432366,-273.97680057,0.00015305,2]
[401311591,1768127432379,-300.0,0.00015319,2]
[401311592,1768127432389,-1200.0,0.00015319,2]
[401311593,1768127432399,-300.0,0.00015319,2]
[401311594,1768127432410,-107528.10341074,0.0001532,2]
[401311595,1768127432421,-507.22104814,0.000154,2]
[401311596,1768127432430,-300.0,0.00015545,2]
[401311597,1768127432440,-299.83629348,0.00015545,2]
[401311598,1768127432450,-192.31731637,0.00015769,2]
[401311599,1768127432463,-2235.09627552,0.00015807,2]
[401311600,1768127432472,-60071.93954314,0.00016,2]
[401311601,1768127432490,-5723.26779453,0.00016,2]
[401311602,1768127432502,-10390.34648584,0.00016,2]
[401311624,1768127434814,166.66,0.00014591,2]
[401311625,1768127434996,166.66,0.00014898,2]
[401311628,1768127438484,-166.66,0.00015205,2]
[401311629,1768127438494,-166.66,0.00015513,2]
[401311630,1768127438504,-166.66,0.0001582,2]
[401311631,1768127438514,-500.0,0.00015999,2]
[401311632,1768127438527,-800.02,0.00016,2]
[401311633,1768127438548,-999.0,0.00016,2]
[401311834,1768127440540,-103037.11045164,0.00016,2]
[401311836,1768127440550,-498.489,0.00016093,2]
[401311838,1768127440560,-166.66,0.00016112,2]
[401311840,1768127440570,-166.66,0.00016127,2]
[401311842,1768127440579,-6637.6910436,0.00016169,2]
[401311844,1768127440588,-233.11546213,0.00016199,2]
[401311846,1768127440597,-500.0,0.00016199,2]
[401311848,1768127440606,-150.32869612,0.00016199,2]
[401311850,1768127440616,-341.47499765,0.00016199,2]
[401311852,1768127440625,-500.0,0.00016199,2]
[401311853,1768127440634,-385.16359743,0.00016199,2]
[401311855,1768127440644,-150.0,0.000162,2]
[401311856,1768127440653,-259734.16534596,0.000162,5]
[401311857,1768127440664,-150.0,0.00016269,2]
[401311858,1768127440673,-150.0,0.00016269,2]
[401311859,1768127440683,-1000000.0,0.00016321,2]
[401311860,1768127440692,-150.0,0.00016338,2]
[401311861,1768127440701,-200.0,0.0001634,2]
[401311862,1768127440711,-6637.69104354,0.00016361,2]
[401311863,1768127440720,-150.0,0.00016408,2]
[401311864,1768127440729,-202.27919226,0.00016411,2]
[401311865,1768127440739,-151.0,0.00016411,2]
[401311866,1768127440748,-151.0,0.00016411,2]
[401311867,1768127440758,-235.01688217,0.00016411,2]
[401311868,1768127440768,-500.0,0.0001642,2]
[401311869,1768127440777,-615.06251518,0.0001642,2]
[401311871,1768127440786,-535.89319473,0.0001642,2]
[401311873,1768127440794,-500.0,0.0001642,2]
[401311875,1768127440803,-519.66992392,0.0001642,2]
[401311877,1768127440813,-500.0,0.0001642,2]
[401311879,1768127440822,-500.0,0.0001642,2]
[401311881,1768127440831,-500.0,0.0001642,2]
[401311883,1768127440840,-500.0,0.0001642,2]
[401311885,1768127440849,-512.90817352,0.0001642,2]
[401311887,1768127440858,-1480.81,0.00016424,2]
[401311889,1768127440867,-510.0,0.00016437,2]
[401311891,1768127440876,-888.0,0.00016438,2]
[401311893,1768127440885,-800.0,0.00016438,2]
[401311895,1768127440895,-150.0,0.00016477,2]
[401311897,1768127440904,-1000.0,0.00016519,2]
[401311899,1768127440913,-500.0,0.00016519,2]
[401311901,1768127440922,-200.0,0.00016519,2]
[401311903,1768127440931,-200.0,0.00016519,2]
[401311905,1768127440942,-956.34,0.00016519,2]
[401311907,1768127440952,-150.0,0.00016546,2]
[401311909,1768127440961,-6637.69104354,0.00016554,2]
[401311911,1768127440971,-1500.0,0.00016587,2]
[401311913,1768127440980,-152.91,0.00016591,2]
[401311917,1768127440990,-359.70734215,0.000166,2]
[401311921,1768127441001,-150.0,0.00016615,2]
[401311924,1768127441012,-500.0,0.00016618,2]
[401311926,1768127441022,-500.0,0.00016618,2]
[401311930,1768127441031,-500.0,0.00016618,2]
[401311933,1768127441041,-500.0,0.00016618,2]
[401311936,1768127441051,-10667.87,0.00016651,2]
[401311938,1768127441060,-150.0,0.00016685,2]
[401311942,1768127441069,-158.73,0.00016712,2]
[401311944,1768127441078,-6637.69104354,0.00016746,2]
[401311947,1768127441088,-195.0,0.0001675,2]
[401311951,1768127441097,-150.0,0.00016754,2]
[401311953,1768127441107,-420.0,0.0001676,2]
[401311957,1768127441116,-16744.67998272,0.00016777,2]
[401311959,1768127441126,-500.0,0.00016793,2]
[401311962,1768127441135,-287763.88817206,0.000168,2]
[401311964,1768127441144,-150.0,0.00016823,2]
[401311966,1768127441152,-150.0,0.00016845,2]
[401311968,1768127441162,-1680.0,0.00016845,2]
[401311970,1768127441171,-250.0,0.00016851,2]
[401311972,1768127441180,-250.0,0.00016851,2]
[401311974,1768127441189,-195.0,0.00016851,2]
[401311976,1768127441198,-2363.81814756,0.00016851,2]
[401311978,1768127441208,-300.0,0.00016851,2]
[401311980,1768127441221,-300.0,0.00016851,2]
[401311982,1768127441230,-248.05759627,0.00016852,2]
[401311984,1768127441240,-150.0,0.00016892,2]
[401311986,1768127441250,-6637.69104354,0.00016938,2]
[401311988,1768127441259,-150.0,0.00016962,2]
[401311990,1768127441269,-166.66,0.00016998,2]
[401311992,1768127441278,-250.0,0.00017,2]
[401311994,1768127441289,-160.0,0.00017,2]
[401311996,1768127441298,-255.38896935,0.00017007,2]
[401311998,1768127441307,-213.63364475,0.00017007,2]
[401312000,1768127441316,-150.0,0.00017007,2]
[401312002,1768127441326,-150.0,0.00017007,2]
[401312005,1768127441335,-500.0,0.00017007,2]
[401312007,1768127441344,-150.0,0.00017007,2]
[401312009,1768127441354,-150.0,0.00017031,2]
[401312011,1768127441363,-150.0,0.00017062,2]
[401312013,1768127441372,-150.0,0.00017062,2]
[401312015,1768127441382,-500.0,0.00017062,2]
[401312017,1768127441391,-150.0,0.00017062,2]
[401312019,1768127441401,-500.0,0.00017073,2]
[401312021,1768127441410,-500.0,0.00017073,2]
[401312023,1768127441420,-500.0,0.00017073,2]
[401312024,1768127441429,-586.16911209,0.00017073,2]
[401312027,1768127441439,-500.0,0.00017073,2]
[401312028,1768127441450,-500.0,0.00017073,2]
[401312030,1768127441460,-501.8033265,0.00017073,2]
[401312033,1768127441470,-155.74193708,0.00017099,2]
[401312035,1768127441480,-553.64373807,0.00017099,2]
[401312037,1768127441490,-322.6107,0.00017099,2]
[401312039,1768127441499,-578.20924308,0.00017099,2]
[401312040,1768127441509,-620.0,0.00017099,2]
[401312042,1768127441519,-150.0,0.000171,2]
[401312044,1768127441528,-150.0,0.00017117,2]
[401312046,1768127441537,-150.0,0.00017117,2]
[401312049,1768127441547,-500.0,0.00017117,2]
[401312050,1768127441556,-150.0,0.00017117,2]
[401312052,1768127441565,-6637.69104354,0.00017131,2]
[401312055,1768127441575,-956.34,0.00017139,2]
[401312057,1768127441585,-150.0,0.00017169,2]
[401312059,1768127441593,-150.0,0.00017171,2]
[401312061,1768127441602,-150.0,0.00017171,2]
[401312063,1768127441612,-548.0,0.00017171,2]
[401312065,1768127441621,-150.0,0.00017171,2]
[401312067,1768127441630,-250.0,0.00017226,2]
[401312069,1768127441639,-150.0,0.00017226,2]
[401312071,1768127441648,-150.0,0.00017226,2]
[401312073,1768127441657,-150.0,0.00017238,2]
[401312075,1768127441667,-250.0,0.00017281,2]
[401312077,1768127441676,-250.0,0.00017281,2]
[401312078,1768127441685,-150.0,0.00017308,2]
[401312080,1768127441694,-6637.69104354,0.00017323,2]
[401312082,1768127441703,-150.0,0.00017377,2]
[401312084,1768127441713,-150.0,0.00017446,2]
[401312087,1768127441722,-513.0,0.00017459,2]
[401312088,1768127441732,-2000.0,0.000175,2]
[401312091,1768127441741,-1601.60083457,0.000175,2]
[401312092,1768127441750,-6637.69104354,0.00017515,2]
[401312095,1768127441760,-150.0,0.00017515,2]
[401312096,1768127441768,-150.91677639,0.00017556,2]
[401312098,1768127441777,-150.0,0.00017556,2]
[401312100,1768127441786,-152.60681401,0.00017556,2]
[401312102,1768127441795,-150.0,0.00017556,2]
[401312104,1768127441803,-150.0,0.00017556,2]
[401312106,1768127441812,-221.72177176,0.00017556,2]
[401312108,1768127441821,-150.0,0.00017556,2]
[401312110,1768127441831,-150.0,0.00017585,2]
[401312112,1768127441840,-3843.0,0.00017601,2]
[401312114,1768127441849,-150.0,0.00017611,2]
[401312116,1768127441858,-150.0,0.00017611,2]
[401312118,1768127441867,-743.38858154,0.00017621,2]
[401312120,1768127441876,-1000.0,0.00017621,2]
[401312122,1768127441886,-1000.0,0.00017621,2]
[401312124,1768127441895,-1000.0,0.00017621,2]
[401312126,1768127441904,-681.0,0.00017632,2]
[401312128,1768127441913,-2424.60311288,0.0001764,2]
[401312130,1768127441923,-150.0,0.00017654,2]
[401312133,1768127441932,-200.0,0.00017666,2]
[401312135,1768127441941,-200.0,0.00017666,2]
[401312136,1768127441951,-780.16040122,0.000177,2]
[401312139,1768127441960,-6637.69104354,0.00017708,2]
[401312140,1768127441969,-513.0,0.00017711,2]
[401312143,1768127441978,-150.0,0.00017723,2]
[401312145,1768127441987,-513.0,0.0001773,2]
[401312146,1768127441996,-956.34,0.00017758,2]
[401312149,1768127442006,-150.0,0.00017792,2]
[401312150,1768127442015,-1000.0,0.000178,2]
[401312152,1768127442024,-14440.20798762,0.000178,2]
[401312154,1768127442033,-200.0,0.00017856,2]
[401312157,1768127442043,-150.0,0.00017862,2]
[401312159,1768127442052,-513.0,0.00017862,2]